bitfinex-derivatives/quotes_SOLF0:USTF0_20250311
["timestamp","ask_amount","ask_price","bid_price","bid_amount"]
[1741658108496,3.9812,118.87,118.77,39.10136186]
[1741658108699,35.05556186,118.86,118.78,58.46]
[1741658109495,35.05556186,118.86,118.81,0.06239975]
[1741658109699,0.05754841,118.83,118.81,0.06239975]
[1741658114401,8.5347,118.9,118.81,37.63796161]
[1741658114603,8.5347,118.9,118.83,35.05556186]
[1741658115200,8.5347,118.9,118.82,4.1269]
[1741658115406,8.5347,118.9,118.8,336.08]
[1741658115611,0.05962831,118.87,118.85,0.05636732]
[1741658116514,0.05962831,118.87,118.78,4.1269]
[1741658116515,35.05556186,118.86,118.78,4.1269]
[1741658116710,3.9797,118.89,118.78,39.18246186]
[1741658116905,3.9797,118.89,118.8,35.05556186]
[1741658117508,3.9797,118.89,118.78,39.18246186]
[1741658117806,0.06235166,118.86,118.83,0.06298235]
[1741658124514,35.11791352,118.86,118.83,0.06298235]
[1741658124715,35.11791352,118.86,118.76,4.0486]
[1741658124914,35.05556186,118.86,118.76,4.0486]
[1741658125115,35.05556186,118.88,118.77,35.05556186]
[1741658125613,35.05556186,118.88,118.77,226.05556186]
[1741658125813,35.05556186,118.88,118.81,0.05298235]
[1741658126115,0.0624067,118.84,118.81,0.05298235]
[1741658127119,62.2397,118.89,118.81,0.05298235]
[1741658127120,3.9797,118.89,118.81,35.10854421]
[1741658127317,8.5347,118.9,118.81,35.10854421]
[1741658127505,39.19816186,118.94,118.83,35.05556186]
[1741658127707,4.0004,118.93,118.83,35.05556186]
[1741658128318,0.06406312,118.89,118.87,0.06160995]
[1741658129719,0.06406312,118.89,118.8,195.1252]
[1741658129919,35.05556186,118.9,118.8,195.1252]
[1741658131111,0.05347431,118.86,118.84,0.0537791]
[1741658133419,0.05347431,118.86,118.8,191.0]
[1741658133420,95.78903617,118.86,118.76,8.4909]
[1741658133717,35.05556186,118.84,118.76,4.1144]
[1741658133910,35.05556186,118.84,118.75,21.09480787]
[1741658134318,35.05556186,118.84,118.73,4.3255]
[1741658134520,0.06213203,118.81,118.72,62.5365]
[1741658134815,35.05556186,118.82,118.72,62.5365]
[1741658135012,35.05556186,118.84,118.72,62.5365]
[1741658135210,0.06102941,118.78,118.73,35.05556186]
[1741658135518,0.06102941,118.78,118.72,62.5365]
[1741658136618,0.06102941,118.78,118.73,35.05556186]
[1741658136819,4.0102,118.85,118.73,35.05556186]
[1741658137118,4.0102,118.85,118.75,35.05556186]
[1741658137719,4.0102,118.85,118.77,35.05556186]
[1741658138116,0.06077179,118.82,118.8,0.05816697]
[1741658138911,35.05556186,118.9,118.8,0.05816697]
[1741658139112,35.05556186,118.9,118.79,35.05556186]
[1741658139917,8.2565,118.91,118.81,35.05556186]
[1741658140116,8.2565,118.91,118.83,0.0641321]
[1741658140519,4.2831,118.92,118.83,35.05556186]
[1741658140821,35.05556186,118.96,118.85,35.05556186]
[1741658141014,47.81726186,118.98,118.87,35.05556186]
[1741658141216,35.05556186,118.96,118.87,58.08]
[1741658141521,0.06387527,118.92,118.89,0.06134167]
[1741658147429,35.11943713,118.92,118.89,0.06134167]
[1741658147818,12.2146,118.91,118.82,4.1474]
[1741658148223,70.2146,118.91,118.82,4.1474]
[1741658148727,35.05556186,118.9,118.82,4.1474]
[1741658148927,0.0645362,118.88,118.85,0.06401719]
[1741658151624,35.05556186,118.96,118.85,35.11957905]
[1741658151924,35.05556186,118.96,118.85,35.05556186]
[1741658152120,4.0118,118.97,118.87,35.05556186]
[1741658152624,4.0118,118.97,118.87,39.32716186]
[1741658152820,4.0118,118.97,118.91,0.05348553]
[1741658153123,0.05357394,118.93,118.91,0.05348553]
[1741658157625,35.05556186,119.02,118.91,2.57348553]
[1741658157818,35.05556186,119.02,118.91,0.05348553]
[1741658158024,35.05556186,119.02,118.89,96.94746186]
[1741658158825,0.05944436,118.97,118.94,0.05742472]
[1741658159026,0.05944436,118.97,118.89,96.94746186]
[1741658159329,35.05556186,119.02,118.94,0.06386129]
[1741658159529,35.05556186,119.02,118.89,287.94746186]
[1741658159723,0.06258967,118.99,118.89,287.94746186]
[1741658159924,0.06258967,118.99,118.97,0.05531789]
[1741658160123,35.05556186,119.02,118.89,287.94746186]
[1741658160325,35.05556186,119.02,118.93,0.06220893]
[1741658160529,0.05856671,118.97,118.89,289.62968912]
[1741658160831,35.05556186,119.02,118.96,0.0605827]
[1741658161026,0.06132464,118.94,118.89,289.62968912]
[1741658161223,0.05379814,118.93,118.89,289.62968912]
[1741658161427,35.05556186,119.0,118.9,0.0598745]
[1741658161622,35.05556186,119.0,118.89,289.62968912]
[1741658162332,35.05556186,119.02,118.91,35.05556186]
[1741658162526,35.05556186,119.02,118.95,0.05577301]
[1741658162726,0.05650982,118.98,118.95,0.05577301]
[1741658163122,35.05556186,119.08,118.97,35.05556186]
[1741658163327,43.54246186,119.1,118.99,35.05556186]
[1741658163528,43.54246186,119.1,119.0,57.8]
[1741658164135,43.54246186,119.1,119.0,61.9081]
[1741658164433,0.05589925,119.06,119.04,0.05594689]
[1741658165028,35.11146111,119.06,119.04,0.05594689]
[1741658165535,0.05589925,119.06,119.04,0.05594689]
[1741658166141,35.11146111,119.06,119.04,0.05594689]
[1741658166834,0.05589925,119.06,119.04,0.05594689]
[1741658167034,35.11146111,119.06,119.04,0.05594689]
[1741658167235,35.11146111,119.06,118.99,191.0]
[1741658167436,0.05589925,119.06,118.96,335.16]
[1741658167933,35.05556186,119.04,118.96,335.16]
[1741658168328,0.05977211,119.01,118.99,0.06155405]
[1741658169336,35.05556186,119.0,118.92,4.2018]
[1741658169526,35.05556186,118.96,118.9,4.0024]
[1741658169731,35.05556186,118.96,118.89,1.68222726]
[1741658170335,35.05556186,118.98,118.89,1.68222726]
[1741658170532,0.05425601,118.94,118.91,0.06064828]
[1741658170733,35.05556186,119.0,118.91,57.74064828]
[1741658171041,35.05556186,119.0,118.91,57.68]
[1741658171540,39.16226186,119.02,118.92,35.05556186]
[1741658171941,0.05615919,118.98,118.96,0.06217957]
[1741658172144,4.0934,119.03,118.96,0.06217957]
[1741658172538,35.05556186,119.02,118.96,0.06217957]
[1741658173237,0.06096565,119.0,118.96,0.06217957]
[1741658175038,35.11652751,119.0,118.96,0.06217957]
[1741658175740,35.05556186,118.98,118.91,277.3]
[1741658176140,35.05556186,118.98,118.9,4.114]
[1741658176345,35.05556186,118.98,118.89,1.68222726]
[1741658176643,35.05556186,118.96,118.89,1.68222726]
[1741658177041,0.06423621,118.94,118.91,0.06284038]
[1741658178636,35.05556186,118.92,118.85,1.463107]
[1741658178941,35.05556186,118.92,118.82,220.28158484]
[1741658179545,35.05556186,118.92,118.82,255.3371467]
[1741658179735,57.6,119.01,118.86,35.05556186]
[1741658179941,6.612e-05,118.88,118.86,35.11364793]
[1741658180133,39.37226186,119.0,118.86,37.57556186]
[1741658180442,35.05556186,118.98,118.87,35.05556186]
[1741658180946,4.1399,118.97,118.87,35.05556186]
[1741658181444,0.05999982,118.93,118.91,0.05908923]
[1741658184850,251.56,119.11,118.92,127.67112372]
[1741658185040,35.05556186,119.06,118.95,35.05556186]
[1741658185242,4.0748,119.1,118.97,35.05556186]
[1741658185444,35.05556186,119.1,118.99,35.05556186]
[1741658185638,35.05556186,119.12,118.99,35.05556186]
[1741658185846,8.2362,119.15,119.04,35.05556186]
[1741658185847,43.29176186,119.15,119.04,35.05556186]
[1741658186039,3.627e-05,119.07,119.05,4.0702]
[1741658186350,8.2362,119.15,119.05,4.0702]
[1741658186749,8.2362,119.15,119.07,35.05556186]
[1741658186944,34.55466303,119.16,119.08,57.52]
[1741658187146,34.55466303,119.16,119.07,35.05556186]
[1741658187346,0.0583019,119.13,119.11,0.0573646]
[1741658187950,0.0583019,119.13,119.04,57.52]
[1741658188345,34.55466303,119.16,119.06,56.68625415]
[1741658188844,91.24091718,119.16,119.04,114.20625415]
[1741658189045,34.55466303,119.16,119.06,56.68625415]
[1741658189245,0.05756369,119.12,119.1,0.06393082]
[1741658189744,60.93265415,119.17,119.1,0.06393082]
[1741658189942,0.05411361,119.12,119.1,0.06393082]
[1741658190245,60.93265415,119.17,119.1,0.06393082]
[1741658190444,0.06107336,119.12,119.1,0.06393082]
[1741658190645,60.93265415,119.17,119.1,0.06393082]
[1741658190854,0.05616553,119.12,119.1,0.06393082]
[1741658191153,60.93265415,119.17,119.1,0.06393082]
[1741658191446,0.0570976,119.12,119.1,0.06393082]
[1741658191652,60.93265415,119.17,119.1,0.06393082]
[1741658191851,0.05353688,119.15,119.1,0.06393082]
[1741658192047,60.93265415,119.17,119.1,0.06393082]
[1741658192252,0.05809541,119.14,119.1,0.06393082]
[1741658194453,277.14,119.29,119.13,56.68625415]
[1741658194662,64.95115415,119.25,119.14,57.42]
[1741658195248,56.68625415,119.23,119.14,57.42]
[1741658195451,4.3912,119.22,119.14,57.42]
[1741658195754,0.05418791,119.2,119.17,0.0534559]
[1741658196352,0.05418791,119.2,119.1,468.14]
[1741658196353,56.68625415,119.19,119.1,468.14]
[1741658196547,4.3402,119.18,119.1,277.14]
[1741658197254,56.68625415,119.21,119.11,56.68625415]
[1741658197453,56.68625415,119.19,119.1,468.14]
[1741658197757,56.68625415,119.19,119.1,191.0]
[1741658197953,56.68625415,119.17,119.1,191.0]
[1741658198153,4.41423884,119.16,119.13,0.05447644]
[1741658199352,4.41423884,119.16,119.1,191.0]
[1741658199550,0.06153884,119.16,119.1,191.0]
[1741658199755,4.41423884,119.16,119.1,191.0]
[1741658199954,4.41423884,119.16,119.05,143.92150342]
[1741658199955,56.68625415,119.15,119.05,143.92150342]
[1741658200158,56.68625415,119.13,119.05,82.96764927]
[1741658200454,4.3416,119.12,119.05,82.96764927]
[1741658200657,0.06239623,119.1,119.08,0.0560707]
[1741658201452,0.06239623,119.1,119.03,191.0]
[1741658202367,0.06239623,119.1,119.04,57.34]
[1741658202657,0.06239623,119.1,119.07,56.68625415]
[1741658202854,4.202,119.2,119.09,56.68625415]
[1741658203057,8.4209,119.2,119.1,57.32]
[1741658203755,56.68625415,119.19,119.1,57.32]
[1741658203955,56.68625415,119.17,119.08,3.9914]
[1741658204157,56.68625415,119.17,119.07,191.0]
[1741658204158,0.06002033,119.16,119.14,0.05537203]
[1741658204357,0.06002033,119.16,119.06,334.32]
[1741658204561,56.68625415,119.15,119.06,334.32]
[1741658204762,4.0105,119.14,119.03,56.68625415]
[1741658204955,56.68625415,119.13,119.03,56.68625415]
[1741658205151,60.79235415,119.13,119.03,56.68625415]
[1741658205652,0.05537182,119.09,119.07,0.06367211]
[1741658213464,0.05537182,119.09,119.01,191.0]
[1741658213661,0.05537182,119.09,118.99,113.92625415]
[1741658213867,4.0105,119.14,119.03,56.68625415]
[1741658214168,4.1744,119.13,119.05,56.68625415]
[1741658214560,0.0630653,119.08,119.06,0.0579675]
[1741658214760,4.1744,119.13,119.06,0.0579675]
[1741658214967,0.06067088,119.08,119.06,0.0579675]
[1741658215166,4.1744,119.13,119.06,0.0579675]
[1741658215367,0.06408034,119.08,119.06,0.0579675]
[1741658215571,60.86065415,119.13,119.06,0.0579675]
[1741658215767,0.06155901,119.08,119.06,0.0579675]
[1741658216070,0.06200365,119.08,119.06,0.0579675]
[1741658216672,0.06200365,119.08,118.99,57.22]
[1741658216867,4.46160365,119.08,118.99,57.22]
[1741658217068,56.68625415,119.07,118.96,92.68178143]
[1741658217373,56.68625415,119.07,118.96,91.22014927]
[1741658217573,4.0603,119.06,118.96,91.22014927]
[1741658217873,0.06112169,119.03,119.0,0.0586072]
[1741658219771,56.74737584,119.03,119.0,0.0586072]
[1741658219972,4.4012,119.02,118.94,359.96764927]
[1741658220168,4.4012,119.02,118.94,82.96764927]
[1741658220672,4.4012,119.02,118.95,56.68625415]
[1741658220864,4.4012,119.02,118.94,82.96764927]
[1741658221175,0.05827614,118.99,118.97,0.0594167]
[1741658223174,0.05827614,118.99,118.91,82.96764927]
[1741658223175,56.74453029,118.99,118.91,82.96764927]
[1741658223475,8.3782,118.98,118.91,82.96764927]
[1741658223675,8.3782,118.98,118.88,281.2143]
[1741658223877,8.3782,118.98,118.88,337.90055415]
[1741658224176,0.06406521,118.94,118.88,337.90055415]
[1741658224785,0.06406521,118.94,118.9,56.68625415]
[1741658225179,0.06406521,118.94,118.88,395.08055415]
[1741658225585,0.06406521,118.94,118.88,118.00055415]
[1741658225881,0.06406521,118.94,118.87,82.96764927]
[1741658226183,113.86625415,118.93,118.87,82.96764927]
[1741658226376,4.1742,118.92,118.86,82.96764927]
[1741658226785,0.05388531,118.9,118.86,82.96764927]
[1741658228584,0.05388531,118.9,118.87,56.68625415]
[1741658228784,8.2906,118.98,118.89,56.68625415]
[1741658229089,8.2906,118.98,118.9,57.18]
[1741658229682,64.97685415,118.98,118.87,8.429]
[1741658229888,0.0600263,118.95,118.93,0.05585186]
[1741658230083,56.68625415,118.94,118.83,8.4471]
[1741658230284,56.68625415,118.92,118.83,4.2658]
[1741658230480,56.68625415,118.9,118.81,57.16]
[1741658230888,8.3313,118.91,118.81,57.16]
[1741658231188,0.05584375,118.87,118.81,57.16]
[1741658231982,0.05584375,118.87,118.82,56.68625415]
[1741658232182,56.68625415,118.96,118.84,56.68625415]
[1741658232388,56.68625415,118.96,118.86,56.68625415]
[1741658232886,126.57435415,118.98,118.86,56.68625415]
[1741658233086,69.41435415,118.98,118.88,56.68625415]
[1741658233286,0.05378017,118.93,118.91,0.05304373]
[1741658233481,12.7281,118.98,118.91,0.05304373]
[1741658233887,0.05358705,118.96,118.91,0.05304373]
[1741658234087,0.05358705,118.96,118.91,4.0707]
[1741658234283,0.05358705,118.96,118.92,0.05584375]
[1741658235797,8.6729,119.01,118.92,56.7420979]
[1741658236091,8.6729,119.01,118.92,56.68625415]
[1741658236291,8.6729,119.01,118.91,4.0707]
[1741658237090,0.06248823,118.97,118.95,0.06253611]
[1741658242995,0.06248823,118.97,118.87,472.5898]
[1741658242996,56.68625415,118.96,118.87,191.0]
[1741658243192,4.1187,118.95,118.86,4.1399]
[1741658243393,56.68625415,118.94,118.83,65.3469]
[1741658244196,0.06261756,118.9,118.87,0.04689469]
[1741658244896,56.74887171,118.9,118.87,0.04689469]
[1741658245103,56.74887171,118.9,118.81,277.34]
[1741658245298,56.68625415,118.9,118.79,65.2506]
[1741658245802,4.0901,118.89,118.79,65.2506]
[1741658245996,4.0901,118.89,118.8,56.68625415]
[1741658246196,0.06412429,118.85,118.8,56.68625415]
[1741658246593,0.06412429,118.85,118.79,8.2106]
[1741658247205,0.06412429,118.85,118.8,56.68625415]
[1741658247806,0.06412429,118.85,118.79,8.2106]
[1741658248699,0.06412429,118.85,118.79,65.2306]
[1741658250810,0.06412429,118.85,118.8,56.68625415]
[1741658251905,4.2264,118.91,118.82,56.68625415]
[1741658253010,0.06171241,118.88,118.85,0.05717056]
[1741658253806,0.06171241,118.88,118.85,4.08657056]
[1741658254904,0.06171241,118.88,118.85,0.05717056]
[1741658256709,0.00127758,118.88,118.85,0.05717056]
[1741658257806,56.68625415,118.86,118.82,112.92383663]
[1741658258009,56.96,118.9,118.82,112.92383663]
[1741658258010,56.68625415,118.83,118.82,99.64543663]
[1741658258209,113.64625415,118.83,118.81,195.50027082]
[1741658259010,116.2267429,118.83,118.81,188.92440907]
[1741658259212,116.2267429,118.83,118.81,169.26650907]
[1741658259407,113.7067429,118.83,118.82,53.87455141]
[1741658260711,116.2267429,118.83,118.82,53.87455141]
[1741658260921,116.2267429,118.83,118.81,0.06303825]
[1741658261204,393.8267429,118.83,118.73,13.0752]
[1741658261412,56.68625415,118.8,118.73,13.0752]
[1741658261604,334.56,118.83,118.68,58.15108557]
[1741658261605,56.68625415,118.78,118.68,58.15108557]
[1741658261801,56.92,118.77,118.69,12.6401]
[1741658262203,0.05956443,118.74,118.69,12.6401]
[1741658263814,0.05956443,118.74,118.69,8.5963]
[1741658264203,56.74581858,118.74,118.64,60.73005415]
[1741658264511,56.68625415,118.74,118.65,8.2456]
[1741658264810,0.05760418,118.7,118.65,8.2456]
[1741658265403,56.68625415,118.69,118.58,56.68625415]
[1741658265605,56.68625415,118.65,118.61,8.4473]
[1741658265814,113.66378868,118.65,118.61,8.4473]
[1741658266113,113.66378868,118.65,118.61,4.2177]
[1741658266313,56.68625415,118.63,118.57,4.3085]
[1741658266507,56.68625415,118.63,118.57,8.5262]
[1741658266910,0.05846099,118.61,118.57,8.5262]
[1741658267313,56.74471514,118.61,118.57,8.5262]
[1741658267506,56.9,118.6,118.57,4.2177]
[1741658267711,56.68625415,118.59,118.5,4.3085]
[1741658267916,56.68625415,118.59,118.5,12.5652]
[1741658268114,56.9,118.6,118.5,12.5652]
[1741658268315,0.05653861,118.56,118.51,56.68625415]
[1741658268622,56.68625415,118.63,118.51,56.68625415]
[1741658268812,56.68625415,118.63,118.53,56.68625415]
[1741658269615,0.05546876,118.59,118.57,0.05365498]
[1741658269812,56.9,118.58,118.51,1.68762129]
[1741658270214,56.68625415,118.61,118.51,1.68762129]
[1741658270517,56.9,118.62,118.52,56.68625415]
[1741658271018,0.05761424,118.58,118.56,0.06255678]
[1741658271219,56.9,118.62,118.56,0.06255678]
[1741658271416,334.52625415,118.67,118.56,0.06255678]
[1741658271618,391.44625415,118.67,118.56,56.74881093]
[1741658271808,334.76,118.67,118.57,4.1895]
[1741658272013,56.92,118.67,118.57,61.0895]
[1741658272318,56.68625415,118.69,118.58,56.68625415]
[1741658272513,0.05554043,118.63,118.61,0.06056992]
[1741658272817,56.68625415,118.67,118.57,252.0895]
[1741658273614,56.68625415,118.74,118.62,56.68625415]
[1741658273811,56.68625415,118.72,118.6,56.68625415]
[1741658274011,0.06210407,118.63,118.61,0.06092319]
[1741658274211,56.68625415,118.66,118.57,195.1895]
[1741658274411,0.06411131,118.63,118.61,0.05374594]
[1741658276814,56.68625415,118.7,118.61,0.05374594]
[1741658277012,113.56625415,118.7,118.61,0.05374594]
[1741658277213,56.68625415,118.72,118.6,56.68625415]
[1741658277414,113.56625415,118.74,118.62,56.68625415]
[1741658278018,0.05969848,118.69,118.67,0.05903915]
[1741658278219,113.56625415,118.74,118.67,0.05903915]
[1741658278524,0.06185419,118.69,118.67,0.05903915]
[1741658278817,56.68625415,118.72,118.67,0.05903915]
[1741658279016,0.05712644,118.69,118.67,0.05903915]
[1741658279918,278.04,118.77,118.67,0.05903915]
[1741658279919,56.68625415,118.78,118.67,2.57903915]
[1741658280123,56.68625415,118.78,118.68,61.06695415]
[1741658280625,56.68625415,118.76,118.68,4.3807]
[1741658281020,0.06054857,118.73,118.71,0.05834783]
[1741658281524,56.84,118.79,118.71,0.05520266]
[1741658281919,56.84,118.79,118.7,4.0798]
[1741658282325,56.68625415,118.78,118.7,4.0798]
[1741658282724,0.06361008,118.75,118.73,0.05836242]
[1741658284233,113.48625415,118.74,118.61,1.46560256]
[1741658284527,56.8,118.74,118.65,8.3037]
[1741658285024,0.1889,118.78,118.68,56.68625415]
[1741658285228,113.67515415,118.82,118.7,56.68625415]
[1741658285430,56.87515415,118.82,118.72,0.05699789]
[1741658285818,278.02,118.83,118.74,56.68625415]
[1741658286024,56.78,118.85,118.75,61.2048]
[1741658286225,56.68625415,118.88,118.76,56.68625415]
[1741658286734,0.06144494,118.83,118.81,0.05916551]
[1741658287029,56.68625415,118.88,118.77,4.1308]
[1741658287224,68.29174385,118.9,118.81,0.05792696]
[1741658287629,68.29174385,118.9,118.81,4.0266]
[1741658288132,68.29174385,118.9,118.82,3.999]
[1741658288438,11.6054897,118.9,118.82,3.999]
[1741658288628,0.06226198,118.87,118.85,0.05682255]
[1741658290331,56.78226198,118.87,118.85,0.05682255]
[1741658291634,0.06226198,118.87,118.85,0.05682255]
[1741658292230,113.38625415,118.86,118.78,4.4279]
[1741658292425,56.68625415,118.84,118.75,8.4879]
[1741658292629,56.68625415,118.82,118.75,8.4879]
[1741658293531,0.05894163,118.8,118.77,0.06293102]
[1741658293923,56.68625415,118.81,118.75,4.1261]
[1741658294128,0.05965758,118.8,118.77,0.06030107]
[1741658294737,56.68625415,118.79,118.77,0.06030107]
[1741658295036,0.05965758,118.8,118.77,0.06030107]
[1741658301240,56.68625415,118.85,118.77,0.06030107]
[1741658301437,56.68625415,118.85,118.75,113.30625415]
[1741658302642,0.05873268,118.81,118.79,0.06237625]
[1741658303338,277.78,118.87,118.79,0.06237625]
[1741658303553,56.68625415,118.91,118.81,56.68625415]
[1741658303748,57.06205415,118.95,118.83,56.68625415]
[1741658304445,0.0533512,118.9,118.88,56.68625415]
[1741658304649,323.90015273,118.99,118.89,60.9199]
[1741658304956,46.16015273,118.99,118.9,56.68625415]
[1741658305752,0.05739561,118.96,118.93,0.06110842]
[1741658306247,46.16015273,118.99,118.94,56.68625415]
[1741658306848,46.16015273,118.99,118.93,0.06110842]
[1741658307154,56.68625415,119.01,118.93,0.06110842]
[1741658307354,113.22625415,119.01,118.93,0.06110842]
[1741658307654,0.06387946,118.98,118.92,56.68625415]
[1741658307853,0.06387946,118.98,118.96,0.06224122]
[1741658310549,56.75013361,118.98,118.96,0.06224122]
[1741658311055,56.75013361,118.98,118.89,199.5498]
[1741658311355,56.68625415,118.96,118.89,8.5498]
[1741658311555,56.68625415,118.96,118.89,4.3399]
[1741658311955,56.68625415,118.98,118.89,4.3399]
[1741658312259,0.06450206,118.94,118.91,0.05620749]
[1741658312757,56.68625415,119.0,118.89,60.7999]
[1741658313049,0.06208308,118.94,118.91,0.05975075]
[1741658313255,56.68625415,119.02,118.91,0.05975075]
[1741658313457,56.68625415,119.02,118.9,56.68625415]
[1741658313656,56.68625415,119.0,118.9,56.68625415]
[1741658314457,0.05893149,118.96,118.94,0.05537415]
[1741658316558,56.74518564,118.96,118.89,4.3399]
[1741658317455,56.68625415,118.94,118.87,4.371]
[1741658317655,56.68625415,118.94,118.91,0.05489156]
[1741658318057,0.0534511,118.92,118.91,0.05489156]
[1741658319262,0.0534511,118.92,118.82,62.49932267]
[1741658319462,113.08625415,118.94,118.83,8.2625]
[1741658319664,56.68625415,118.92,118.83,8.2625]
[1741658320563,0.0565967,118.89,118.86,0.05450218]
[1741658321152,278.94347618,119.03,118.86,113.14075633]
[1741658321356,56.68625415,118.98,118.86,113.14075633]
[1741658321562,56.68625415,118.98,118.86,113.08625415]
[1741658321756,56.68625415,119.0,118.88,56.68625415]
[1741658321957,11.6054897,118.99,118.89,8.2806]
[1741658322462,0.05716868,118.95,118.93,0.05783888]
[1741658326460,0.05716868,118.95,118.93,4.38133888]
[1741658326764,390.50625415,119.03,118.93,4.38133888]
[1741658326965,390.50625415,119.03,118.93,4.3235]
[1741658327560,334.16625415,119.03,118.93,4.3235]
[1741658328057,0.06344726,118.99,118.97,0.05994749]
[1741658337975,112.88625415,119.07,118.97,0.05994749]
[1741658338171,112.88625415,119.07,118.96,4.3613]
[1741658338777,56.68625415,119.07,118.96,61.04755415]
[1741658338978,112.88625415,119.07,118.96,61.04755415]
[1741658339177,0.0641085,119.03,119.0,0.06442936]
[1741658339772,11.6054897,119.08,119.0,56.75068351]
[1741658339973,11.6054897,119.08,119.01,4.2673]
[1741658340878,0.06479108,119.06,119.03,0.05534098]
[1741658341981,112.84625415,119.05,118.96,4.3613]
[1741658342178,56.68625415,119.01,118.91,3.9971]
[1741658342383,56.68625415,119.01,118.91,8.1396]
[1741658343185,0.05469402,118.97,118.95,0.06350934]
[1741658346183,0.05469402,118.97,118.89,4.146]
[1741658346388,56.68625415,118.97,118.89,4.146]
[1741658347288,0.06055446,118.94,118.92,0.06320357]
[1741658351782,56.08,119.0,118.92,0.06320357]
[1741658352094,56.08,119.0,118.89,56.68625415]
[1741658352297,333.94625415,119.02,118.91,56.68625415]
[1741658352494,390.02625415,119.02,118.91,56.68625415]
[1741658352998,0.05752197,118.98,118.95,0.05751542]
[1741658356098,0.05752197,118.98,118.95,56.74376957]
[1741658356804,56.04,119.04,118.95,56.74376957]
[1741658356997,56.04,119.04,118.95,56.68625415]
[1741658357302,56.68625415,119.05,118.95,56.68625415]
[1741658357502,112.72625415,119.05,118.95,56.68625415]
[1741658357799,56.04,119.05,118.95,56.68625415]
[1741658358004,6.223e-05,119.01,118.99,0.05456067]
[1741658358205,46.16015273,119.11,119.0,112.70625415]
[1741658358415,46.16015273,119.11,119.01,8.5323]
[1741658359513,0.05403522,119.07,119.05,0.05431667]
[1741658361210,12.1324897,119.14,119.05,0.05431667]
[1741658361404,11.6054897,119.14,119.06,56.68625415]
[1741658361600,11.6054897,119.14,119.07,4.2141]
[1741658362211,11.6054897,119.14,119.08,4.1157]
[1741658362405,11.6054897,119.14,119.09,0.06426841]
[1741658363513,56.68625415,119.17,119.09,0.06426841]
[1741658363907,56.68625415,119.17,119.08,4.1157]
[1741658364111,333.28,119.18,119.12,0.06149467]
[1741658365112,277.32,119.18,119.12,0.06149467]
[1741658366909,56.68625415,119.21,119.12,0.06149467]
[1741658367213,56.68625415,119.21,119.1,56.68625415]
[1741658367408,56.68625415,119.21,119.1,112.56625415]
[1741658367608,56.68625415,119.21,119.15,0.05576629]
[1741658367809,55.88,119.2,119.15,0.05576629]
[1741658368120,56.68625415,119.19,119.15,0.05576629]
[1741658368308,56.68625415,119.17,119.08,4.1157]
[1741658368508,56.68625415,119.15,119.08,4.1157]
[1741658368914,112.54625415,119.15,119.07,8.2002]
[1741658369213,112.54625415,119.15,119.03,55.86]
[1741658369214,56.68625415,119.13,119.05,4.0118]
[1741658369613,0.05667631,119.12,119.1,0.06263902]
[1741658369808,0.05667631,119.12,119.05,4.0118]
[1741658371014,0.05667631,119.12,119.07,0.05768778]
[1741658371919,56.68625415,119.11,119.07,0.05768778]
[1741658372110,0.05667631,119.12,119.07,0.05768778]
[1741658389635,0.05667631,119.12,119.07,55.71768778]
[1741658389847,0.05667631,119.12,119.08,4.378]
[1741658391440,0.05667631,119.12,119.08,8.7487]
[1741658393554,0.05667631,119.12,119.08,4.378]
[1741658396762,0.05667631,119.12,119.07,0.05768778]
[1741658401156,56.76868645,119.12,119.07,0.05768778]
[1741658401361,56.71201014,119.1,118.99,69.67931014]
[1741658401661,56.71201014,119.1,118.99,90.70432705]
[1741658401863,56.71201014,119.12,119.01,56.71201014]
[1741658402155,55.54,119.13,119.03,56.71201014]
[1741658402353,55.54,119.13,119.03,55.52]
[1741658402560,0.05642102,119.09,119.07,0.05986123]
[1741658402759,0.05642102,119.09,119.0,1.46144801]
[1741658402961,0.05642102,119.09,118.99,68.4873]
[1741658403158,56.71201014,119.1,118.99,125.19931014]
[1741658403360,56.71201014,119.12,119.01,56.71201014]
[1741658404056,0.06362739,119.08,119.05,0.05940848]
[1741658404362,311.92421937,119.16,119.05,34.88421937]
[1741658404554,311.92421937,119.16,119.06,8.509]
[1741658404757,34.88421937,119.14,119.06,8.509]
[1741658405565,0.05320697,119.11,119.09,0.06427107]
[1741658406362,81.0443721,119.2,119.09,92.94849044]
[1741658406563,46.16015273,119.2,119.13,34.88421937]
[1741658406763,46.16015273,119.2,119.15,34.88421937]
[1741658406958,43.2988577,119.21,119.17,34.88421937]
[1741658407159,100.49914014,119.23,119.19,34.88421937]
[1741658407353,214.3651669,119.24,119.22,34.88421937]
[1741658407558,211.6056669,119.24,119.2,55.48]